bitfinex/quotes_ETHUSD_20250508
["timestamp","ask_amount","ask_price","bid_price","bid_amount"]
[1746748266207,4.55601621,2194.9,2194.8,4.0573]
[1746748266412,4.65389758,2194.9,2194.8,7.2833]
[1746748266872,0.09788137,2194.9,2194.8,4.0573]
[1746748267344,4.65389758,2194.9,2194.8,4.0573]
[1746748267550,0.09788137,2194.9,2194.8,4.0573]
[1746748267750,4.55454982,2195.7,2194.9,4.55592832]
[1746748267913,16.89481335,2196.1,2194.9,4.55592832]
[1746748267914,4.55507613,2195.4,2195.0,0.75]
[1746748268116,0.09936538,2195.3,2195.0,0.75]
[1746748268320,0.09936538,2195.3,2195.1,0.89247417]
[1746748268521,0.09936538,2195.3,2195.2,3.224]
[1746748268522,4.65455145,2195.3,2195.2,3.224]
[1746748268921,4.55560111,2195.1,2195.0,3.225]
[1746748269148,4.65427899,2195.1,2195.0,3.225]
[1746748274533,5.42257899,2195.1,2195.0,3.225]
[1746748274934,4.55663902,2194.6,2194.5,0.7878]
[1746748275172,0.09773596,2194.6,2194.5,3.9968]
[1746748275334,4.55653526,2194.7,2194.5,3.9968]
[1746748275536,0.09773596,2194.6,2194.5,0.7878]
[1746748275738,0.09773596,2194.6,2194.5,3.9978]
[1746748276180,4.65437498,2194.6,2194.5,0.7878]
[1746748276471,4.65437498,2194.6,2194.5,3.9958]
[1746748276874,4.65437498,2194.6,2194.5,3.9948]
[1746748277539,4.55663902,2194.6,2194.5,3.9948]
[1746748277738,4.65093728,2194.6,2194.5,3.9948]
[1746748278172,4.65093728,2194.6,2194.5,0.7878]
[1746748278345,4.55705606,2194.4,2194.2,3.72957153]
[1746748278547,5.32392857,2195.1,2194.3,10.04681335]
[1746748278747,4.55655641,2194.7,2194.3,10.04681335]
[1746748279066,4.55660506,2194.7,2194.3,6.428]
[1746748279673,4.55660506,2194.7,2194.3,10.98525557]
[1746748280171,4.5566599,2194.6,2194.3,6.428]
[1746748280370,4.55654427,2194.7,2194.3,6.428]
[1746748281062,4.55629861,2194.8,2194.3,6.428]
[1746748281063,4.55664549,2194.6,2194.3,6.428]
[1746748281265,4.55634408,2194.8,2194.3,10.98515819]
[1746748281654,4.55651362,2194.7,2194.3,6.428]
[1746748282169,4.55664353,2194.6,2194.3,6.428]
[1746748283169,4.55653825,2194.7,2194.3,6.428]
[1746748283373,13.6,2195.3,2194.4,5.37380427]
[1746748283374,4.55612895,2194.9,2194.4,5.37380427]
[1746748283587,4.55623011,2194.8,2194.5,1.54206176]
[1746748283745,4.55644493,2194.7,2194.5,1.54206176]
[1746748284055,4.55663902,2194.6,2194.5,1.54206176]
[1746748284255,4.55654148,2194.7,2194.4,0.7713]
[1746748284455,4.55665113,2194.6,2194.4,0.7713]
[1746748284755,0.09443296,2194.6,2194.4,0.7713]
[1746748285077,4.6511255,2194.6,2194.4,0.7713]
[1746748285983,0.09443296,2194.6,2194.4,0.7713]
[1746748286163,4.55676058,2194.6,2194.4,1.94697612]
[1746748286363,4.6510877,2194.5,2194.4,0.7713]
[1746748286852,0.09424104,2194.5,2194.4,7.1953]
[1746748287054,4.6510877,2194.5,2194.4,7.1953]
[1746748287250,0.09424104,2194.5,2194.4,7.1953]
[1746748287482,4.6510877,2194.5,2194.4,7.1953]
[1746748287657,4.6510877,2194.5,2194.4,3.227]
[1746748287856,4.55717193,2194.4,2194.3,3.197]
[1746748288058,4.55726199,2194.3,2194.2,6.424]
[1746748288382,4.65071296,2194.3,2194.2,6.424]
[1746748290852,4.65071296,2194.3,2194.2,3.227]
[1746748291671,0.09345097,2194.3,2194.2,3.227]
[1746748291856,0.09345097,2194.3,2194.2,11.34752115]
[1746748292064,4.55665082,2194.6,2194.2,11.30195003]
[1746748292268,0.09260033,2194.3,2194.2,6.74448034]
[1746748292469,4.55687776,2194.5,2194.2,6.74448034]
[1746748292858,0.0927586,2194.4,2194.2,6.74448034]
[1746748293392,0.09253297,2194.3,2194.2,4.0064]
[1746748293683,4.5568034,2194.6,2194.2,4.0064]
[1746748294059,0.09288318,2194.5,2194.2,4.0064]
[1746748294569,4.64976506,2194.5,2194.2,4.0064]
[1746748294884,4.55726199,2194.3,2194.1,16.398]
[1746748295090,4.55746969,2194.2,2194.1,19.595]
[1746748295269,4.64984438,2194.2,2194.1,3.197]
[1746748295782,4.55830066,2193.8,2193.7,6.98997153]
[1746748295962,4.64957265,2193.8,2193.7,10.18697153]
[1746748296153,0.09127199,2193.8,2193.7,10.18697153]
[1746748296485,0.09127199,2193.8,2193.7,7.2132]
[1746748296851,4.64957265,2193.8,2193.7,7.2132]
[1746748297153,4.64957265,2193.8,2193.7,3.197]
[1746748297359,0.09127199,2193.8,2193.7,6.394]
[1746748297586,0.09127199,2193.8,2193.7,17.19434519]
[1746748297758,4.55728187,2194.3,2193.8,4.5581445]
[1746748298088,0.09117168,2194.2,2193.9,4.55808847]
[1746748298393,4.55728187,2194.3,2193.9,4.55808847]
[1746748298575,0.09190527,2194.2,2194.0,5.32474718]
[1746748298775,4.55713117,2194.4,2194.1,0.53247472]
[1746748299088,0.09206356,2194.3,2194.2,3.198]
[1746748299464,4.55675546,2194.6,2194.2,6.396]
[1746748299792,9.1128628,2194.7,2194.3,3.197]
[1746748299997,4.55704978,2194.5,2194.3,3.197]
[1746748300506,4.55705432,2194.4,2194.3,3.197]
[1746748301006,9.11401187,2194.5,2194.3,3.197]
[1746748301305,4.55705432,2194.4,2194.3,3.197]
[1746748301926,1.53564296,2194.7,2194.3,3.197]
[1746748301927,4.55696827,2194.5,2194.3,3.197]
[1746748302263,4.55696827,2194.5,2194.2,3.198]
[1746748302264,4.55726199,2194.3,2194.2,3.198]
[1746748302463,4.55726199,2194.3,2194.2,6.395]
[1746748303196,4.55750933,2194.2,2194.0,0.7669]
[1746748303495,4.55750933,2194.2,2194.1,3.197]
[1746748304670,4.55737382,2194.3,2194.1,3.197]
[1746748304876,4.55746969,2194.2,2194.1,3.197]
[1746748305785,4.55762162,2194.2,2194.0,6.395]
[1746748305991,4.5576774,2194.1,2194.0,6.395]
[1746748307115,4.5576774,2194.1,2194.0,3.198]
[1746748307319,4.55850845,2193.7,2193.6,12.68053854]
[1746748307475,4.55850647,2193.8,2193.7,3.197]
[1746748308576,0.8107,2194.0,2193.7,3.197]
[1746748308910,4.55740749,2194.3,2193.8,5.37410976]
[1746748309113,4.55749047,2194.2,2193.8,5.37410976]
[1746748309317,4.55749047,2194.2,2193.8,7.68343957]
[1746748309519,4.55723599,2194.4,2193.8,3.12522981]
[1746748309823,4.55723599,2194.4,2193.9,4.55788743]
[1746748309977,4.55723599,2194.4,2194.0,4.55787382]
[1746748310178,4.55723599,2194.4,2194.0,5.68760746]
[1746748311609,5.33403253,2194.6,2194.1,4.55764482]
[1746748311811,4.55699483,2194.5,2194.2,6.394]
[1746748312294,4.55539358,2195.2,2194.5,4.5568372]
[1746748312497,4.55599745,2195.0,2194.5,4.60240046]
[1746748312810,4.55515653,2195.4,2194.8,5.37104734]
[1746748313109,4.55515653,2195.4,2194.9,10.94998043]
[1746748313913,0.7727,2195.8,2194.9,6.394]
[1746748314111,4.55436381,2195.7,2195.3,3.61881335]
[1746748314316,4.55436381,2195.7,2195.4,6.394]
[1746748315381,4.55424419,2195.8,2195.4,6.394]
[1746748315592,4.55424419,2195.8,2195.4,7.2088]
[1746748317685,4.55442645,2195.7,2195.4,7.2088]
[1746748318093,4.55394989,2195.9,2195.4,12.9400461]
[1746748319121,4.55352853,2196.1,2195.6,5.3184996]
[1746748319310,4.55352853,2196.1,2195.6,0.7641]
[1746748319511,0.7602,2197.1,2196.3,4.55297171]
[1746748319709,4.55209508,2196.8,2196.5,0.7843]
[1746748320709,4.5522875,2196.7,2196.5,0.7843]
[1746748321115,4.55217686,2196.8,2196.5,0.7843]
[1746748321312,4.55232208,2196.7,2196.5,0.7843]
[1746748321825,7.55195804,2196.9,2196.5,0.7843]
[1746748322120,4.55157259,2197.1,2196.6,4.59795706]
[1746748322300,4.55168266,2197.0,2196.6,4.59795706]
[1746748322498,0.09033503,2197.0,2196.6,0.04552315]
[1746748322830,0.8094,2197.3,2196.6,0.04552315]
[1746748322831,4.55114478,2197.3,2196.8,4.55197736]
[1746748322992,0.0911198,2197.2,2196.9,6.43451402]
[1746748323194,4.55114478,2197.3,2196.9,6.43451402]
[1746748323392,0.09134651,2197.2,2196.9,12.35422795]
[1746748323592,0.7923,2197.7,2196.9,1.3679424]
[1746748323792,3.8076,2197.4,2196.7,0.8106]
[1746748324016,4.55207574,2196.8,2196.7,6.389]
[1746748324335,4.55207574,2196.8,2196.3,3.0]
[1746748324336,4.55241283,2196.7,2196.6,6.389]
[1746748324625,4.55241283,2196.7,2196.2,0.8146]
[1746748324626,0.09101713,2196.7,2196.2,0.8146]
[1746748324830,4.55261408,2196.6,2196.3,6.389]
[1746748325014,4.64667814,2196.5,2196.3,6.389]
[1746748325219,0.09386198,2196.5,2196.3,6.389]
[1746748325531,4.55279811,2196.5,2196.3,6.389]
[1746748325727,4.55373406,2196.0,2195.9,0.8024]
[1746748325910,4.55364583,2196.1,2195.9,7.1884]
[1746748326119,4.6468827,2196.0,2195.9,0.8024]
[1746748326300,4.55395335,2195.9,2195.6,3.9588]
[1746748326502,4.55420128,2195.8,2195.6,3.9588]
[1746748326827,4.64700015,2195.8,2195.6,3.9588]
[1746748327429,0.09279887,2195.8,2195.6,3.192]
[1746748327635,4.64705022,2195.8,2195.6,3.192]
[1746748327998,0.09279887,2195.8,2195.6,3.192]
[1746748328316,4.55383745,2196.0,2195.6,7.74655513]
[1746748328492,0.09267445,2195.7,2195.6,7.74655513]
[1746748328694,4.55383745,2196.0,2195.6,7.74655513]
[1746748328907,0.09267445,2195.7,2195.6,3.192]
[1746748329092,4.55383745,2196.0,2195.6,3.192]
[1746748329520,0.09299059,2195.9,2195.6,3.192]
[1746748329831,0.09299059,2195.9,2195.6,7.74651775]
[1746748330127,7.553645,2196.1,2195.6,7.74651775]
[1746748330425,0.814,2196.4,2195.7,0.7946]
[1746748330627,14.60235377,2196.7,2195.8,4.5539856]
[1746748330628,4.5531217,2196.3,2195.8,4.5539856]
[1746748330794,4.5531217,2196.3,2195.8,4.55414882]
[1746748331197,4.55383561,2196.0,2195.7,0.7946]
[1746748331440,4.55383561,2196.0,2195.8,6.385]
[1746748331644,0.55,2196.3,2195.7,0.7946]
[1746748331966,4.55410337,2195.9,2195.8,3.192]
[1746748332397,4.55414882,2195.8,2195.7,3.193]
[1746748333727,5.34797272,2196.1,2195.7,3.193]
[1746748333931,4.55399608,2195.9,2195.7,3.193]
[1746748334138,4.5533951,2196.2,2195.7,7.74723259]
[1746748334306,4.55360322,2196.1,2195.7,3.193]
[1746748334627,4.55382837,2196.0,2195.7,3.193]
[1746748334833,4.55398519,2195.9,2195.7,3.193]
[1746748335311,4.55414882,2195.8,2195.7,3.193]
[1746748335517,0.831,2196.0,2195.5,17.201]
[1746748335743,4.55490914,2195.5,2195.3,4.0014]
[1746748335944,0.55,2195.8,2194.9,3.193]
[1746748336151,4.55549378,2195.2,2194.9,3.193]
[1746748336459,4.55601621,2194.9,2194.6,16.399]
[1746748336660,4.55601621,2194.9,2194.7,6.384]
[1746748338174,4.55518607,2195.3,2194.7,6.384]
[1746748338175,0.8146,2195.4,2194.7,10.94033142]
[1746748338371,4.55549331,2195.2,2194.7,6.384]
[1746748338541,4.55549331,2195.2,2194.7,13.2959409]
[1746748338932,4.55615953,2194.9,2194.6,17.1727]
[1746748339231,0.7746,2195.1,2194.3,3.79846377]
[1746748339427,4.55705432,2194.4,2194.3,3.79846377]
[1746748339659,4.55705432,2194.4,2194.3,3.00016377]
[1746748339844,5.33145177,2194.5,2194.1,3.193]
[1746748339845,4.55734155,2194.3,2194.1,3.193]
[1746748340056,3.0,2194.9,2194.1,8.51446821]
[1746748340057,4.55660654,2194.7,2194.1,8.51446821]
[1746748340556,4.55612458,2194.9,2194.4,5.35533392]
[1746748340761,4.5558667,2195.0,2194.5,4.55678396]
[1746748341132,4.5558667,2195.0,2194.6,3.191]
[1746748341327,4.55591842,2195.0,2194.6,3.191]
[1746748341573,4.55562557,2195.1,2194.6,4.0456084]
[1746748341884,4.55582635,2195.0,2194.6,4.0456084]
[1746748342787,4.55582635,2195.0,2194.1,8.70640947]
[1746748342788,4.55658786,2194.7,2194.3,3.191]
[1746748342944,0.7672,2195.2,2194.3,3.191]
[1746748343148,4.55583319,2195.0,2194.5,4.55675385]
[1746748343983,4.5553233,2195.3,2194.6,3.23856279]
[1746748344149,4.55599472,2195.0,2194.6,4.05125211]
[1746748344477,4.55679773,2194.6,2194.4,7.1712]
[1746748344638,4.55653341,2194.7,2194.4,7.1712]
[1746748344839,4.55634033,2194.8,2194.4,8.5372323]
[1746748345042,4.55651484,2194.7,2194.4,5.61332044]
[1746748345234,4.55623898,2194.8,2194.4,3.9802]
[1746748345638,4.55645063,2194.7,2194.4,3.9802]
[1746748345867,4.5566735,2194.6,2194.4,3.9802]
[1746748347667,4.55653596,2194.7,2194.4,3.9802]
[1746748348179,4.55673547,2194.6,2194.4,3.9802]
[1746748348492,4.5565338,2194.7,2194.4,3.9802]
[1746748348892,4.55595372,2195.0,2194.4,5.1530649]
[1746748349189,0.7716,2195.2,2194.4,9.71002575]
[1746748349494,4.55631139,2194.8,2194.4,5.1530649]
[1746748349685,4.55560111,2195.1,2194.4,5.1530649]
[1746748349862,4.55656337,2194.7,2194.4,3.9802]
[1746748351300,4.55663902,2194.6,2194.1,1.04486303]
[1746748351592,4.55742033,2194.3,2194.1,7.1923]
[1746748351791,4.55742033,2194.3,2194.1,4.0013]
[1746748352473,4.55746969,2194.2,2194.1,4.0013]
[1746748352657,4.55738557,2194.3,2194.1,4.0013]
[1746748353194,4.55746969,2194.2,2194.1,4.0013]
[1746748353990,4.55736911,2194.3,2194.1,4.0013]
[1746748355065,4.55746969,2194.2,2194.1,4.0013]
[1746748355891,4.55744876,2194.3,2194.1,4.0013]
[1746748357258,4.55712747,2194.4,2194.1,4.0013]
[1746748357582,4.55707129,2194.4,2194.1,4.0013]
[1746748358400,4.55677633,2194.6,2194.1,8.55888261]
[1746748358595,4.5567847,2194.6,2194.1,4.0013]
[1746748358762,4.55685094,2194.5,2194.1,10.09586569]
[1746748359694,4.55685094,2194.5,2194.2,0.04556968]
[1746748359866,4.55685094,2194.5,2194.1,10.09586569]
[1746748360063,4.55662705,2194.7,2194.2,4.55743087]
[1746748360268,4.55662705,2194.7,2194.2,4.60294337]
[1746748360696,4.55662705,2194.7,2194.2,6.50499809]
[1746748363097,4.55664423,2194.6,2194.2,6.45942841]
[1746748364468,4.55652347,2194.7,2194.2,6.45942841]
[1746748365003,9.11315407,2194.7,2194.2,6.45942841]
[1746748365206,4.55669677,2194.6,2194.2,1.90205472]
[1746748365404,4.55669677,2194.6,2194.2,6.45950365]
[1746748365603,4.55726199,2194.3,2194.1,4.0013]
[1746748365776,4.55726199,2194.3,2194.1,6.384]
[1746748365777,4.55746969,2194.2,2194.1,6.384]
[1746748366185,4.55684905,2194.5,2194.1,10.94157651]
[1746748366903,4.55680172,2194.6,2194.1,10.94157651]
[1746748367103,5.35634995,2194.8,2194.1,8.9834793]
[1746748367303,4.55697437,2194.5,2194.1,6.384]
[1746748368310,4.55697437,2194.5,2194.1,10.94167584]
[1746748368933,4.55697437,2194.5,2194.1,6.384]
[1746748369076,4.55697437,2194.5,2194.1,3.194]
[1746748369375,4.55697437,2194.5,2194.2,3.189]
[1746748373518,0.7658,2195.0,2194.3,0.7833]
[1746748373685,4.55641127,2194.8,2194.3,5.34039937]
[1746748373886,4.55641127,2194.8,2194.4,3.191]
[1746748373887,4.55652433,2194.7,2194.4,3.191]
[1746748375631,4.55634264,2194.8,2194.4,3.191]
[1746748375811,4.55592046,2195.0,2194.5,4.55680598]
[1746748376305,4.5562277,2194.8,2194.4,7.74799327]
[1746748377326,4.5562277,2194.8,2194.4,3.191]
[1746748377621,4.5562277,2194.8,2194.4,7.74803567]
[1746748378201,4.5562277,2194.8,2194.4,7.79360219]
[1746748378402,4.5562277,2194.8,2194.4,9.78791164]
[1746748378693,4.55645759,2194.7,2194.4,5.23087597]
[1746748378912,4.55645759,2194.7,2194.4,5.18530945]
[1746748379112,4.55645759,2194.7,2194.4,3.191]
[1746748379819,4.55645759,2194.7,2194.4,3.23656519]
[1746748380124,4.55608481,2194.9,2194.4,3.23656519]
[1746748380125,4.55634538,2194.8,2194.4,3.23656519]
[1746748380342,0.7977,2195.2,2194.5,3.61999321]
[1746748380495,0.7644,2195.5,2194.8,3.61999321]
[1746748380694,4.55556474,2195.2,2195.0,0.7744]
[1746748380893,4.55560111,2195.1,2194.9,6.378]
[1746748381318,4.55549874,2195.2,2194.9,6.378]
[1746748381591,5.31919373,2195.5,2194.9,6.378]
[1746748381795,4.55560856,2195.1,2194.9,6.378]
[1746748382036,4.55547371,2195.2,2194.9,6.378]
[1746748383229,4.55547371,2195.2,2194.7,7.55648541]
[1746748383431,4.5562238,2194.8,2194.7,3.00016377]
[1746748383801,5.3493238,2194.8,2194.7,3.00016377]
[1746748384392,5.8993238,2194.8,2194.7,3.00016377]
[1746748384698,10.40044436,2194.8,2194.7,3.00016377]
[1746748385003,14.36293889,2194.8,2194.7,3.00016377]
[1746748385329,5.34026199,2194.3,2194.2,3.00016377]
[1746748387431,8.89026199,2194.3,2194.2,3.00016377]
[1746748387595,10.59699789,2194.3,2194.2,3.00016377]
[1746748388656,4.55840998,2193.8,2193.6,6.48237477]
[1746748389008,4.55816477,2193.9,2193.6,6.48237477]
[1746748389209,4.55797509,2194.0,2193.6,6.48237477]
[1746748389611,4.55811564,2193.9,2193.6,6.48237477]
[1746748389811,4.55799385,2194.0,2193.6,8.52373076]
[1746748390107,4.55799385,2194.0,2193.7,0.7924]
[1746748391707,4.55754709,2194.2,2193.7,0.7924]
[1746748391906,0.75,2194.5,2194.0,3.61999321]
[1746748392103,4.55714352,2194.4,2194.1,3.9745]
[1746748392331,4.55695168,2194.5,2194.1,3.9745]
[1746748392646,4.55695168,2194.5,2194.1,9.92983908]
[1746748393542,4.5570827,2194.4,2194.1,5.37220746]
[1746748394049,4.55675463,2194.6,2194.1,9.9298656]
[1746748394220,4.55693813,2194.5,2194.1,5.37220746]
[1746748394739,4.55719599,2194.4,2194.1,5.37220746]
[1746748394910,4.55719599,2194.4,2194.1,3.9745]
[1746748395651,0.22983881,2195.6,2194.1,3.9745]
[1746748395652,4.55611386,2194.9,2194.4,5.33217538]
[1746748395869,4.55611386,2194.9,2194.5,7.74382084]
[1746748396067,4.55588925,2195.0,2194.6,3.185]
[1746748396269,0.8079,2195.5,2194.8,5.38341868]
[1746748396566,4.55497859,2195.4,2194.8,0.8272]
[1746748396723,4.55574344,2195.1,2194.8,0.8272]
[1746748396918,4.55527489,2195.3,2194.8,0.8272]
[1746748397123,4.55549591,2195.2,2194.8,0.8272]
[1746748397320,4.55549591,2195.2,2194.8,5.38340798]
[1746748397939,4.55549591,2195.2,2194.8,0.8272]
[1746748398981,0.8079,2195.5,2194.8,2.18526566]
[1746748399136,7.55473753,2195.6,2195.1,4.55556751]
[1746748399336,7.55473753,2195.6,2195.2,6.372]
[1746748399544,4.5542394,2195.8,2195.3,4.55506841]
[1746748399765,4.55481703,2195.5,2195.2,7.1704]
[1746748400167,4.55459789,2195.6,2195.2,7.1704]
[1746748400168,4.55466861,2195.6,2195.2,7.1704]
[1746748400372,4.55425614,2195.8,2195.4,4.55497717]
[1746748400668,0.7627,2196.0,2195.2,13.85227161]
[1746748400842,0.7627,2196.0,2195.2,11.72579071]
[1746748401049,0.7627,2196.0,2195.5,0.77]
[1746748401050,4.55405405,2195.9,2195.5,0.77]
[1746748401269,4.55384905,2196.0,2195.5,5.32476656]
[1746748401461,4.55396564,2195.9,2195.5,0.77]
[1746748401765,4.55416437,2195.8,2195.5,0.77]
[1746748402173,4.5540434,2195.9,2195.5,0.77]
[1746748402339,4.55414439,2195.9,2195.5,0.77]
[1746748402540,4.55420242,2195.8,2195.5,0.77]
[1746748402740,0.45541444,2195.9,2195.5,0.77]
[1746748402741,4.55456367,2195.6,2195.5,0.77]
[1746748402943,4.55439937,2195.7,2195.5,0.77]
[1746748402944,4.55446765,2195.7,2195.5,0.77]
[1746748403457,4.55456367,2195.6,2195.5,0.77]
[1746748403643,4.55445936,2195.7,2195.5,0.77]
[1746748404674,4.55456367,2195.6,2195.5,0.77]
[1746748405074,4.55445936,2195.7,2195.2,6.372]
[1746748405075,4.55441158,2195.7,2195.3,0.8291]
[1746748405273,4.55458888,2195.6,2195.3,0.8291]
[1746748406542,4.55487416,2195.5,2195.4,6.368]
[1746748410179,4.55487416,2195.5,2195.4,3.186]
[1746748410380,5.46582033,2195.5,2195.4,3.186]
[1746748410569,4.55560111,2195.1,2195.0,16.408]
[1746748410878,4.55528713,2195.3,2195.0,22.776]
[1746748411117,4.55506256,2195.4,2195.0,22.776]
[1746748411118,4.55508944,2195.4,2195.0,22.776]
[1746748411398,4.55489363,2195.5,2195.1,0.7602]
[1746748411693,4.5549863,2195.4,2195.1,0.7602]
[1746748412446,4.55493699,2195.5,2195.1,0.7602]
[1746748412681,4.55500419,2195.4,2195.1,0.7602]
[1746748415565,5.36607714,2195.8,2195.1,0.7602]
[1746748415890,4.55500532,2195.4,2195.1,0.7602]
[1746748416295,4.55431431,2195.8,2195.3,5.31010436]
[1746748416449,4.55431431,2195.8,2195.4,4.5549779]
[1746748416650,4.55431431,2195.8,2195.5,6.36]
[1746748416848,4.55265251,2196.6,2195.6,3.80054564]
[1746748417110,10.8803,2197.0,2196.4,0.7561]
[1746748417384,4.55233018,2196.7,2196.0,0.7561]
[1746748417554,4.55339114,2196.2,2196.1,6.36]
[1746748417761,4.55300677,2196.4,2196.1,6.36]
[1746748418394,4.55273898,2196.5,2196.1,6.36]
[1746748418593,4.55302885,2196.4,2196.1,6.36]
[1746748418748,4.55228296,2196.7,2196.1,6.36]
[1746748418954,4.5530003,2196.4,2196.1,6.36]
[1746748419801,0.91043587,2196.6,2196.0,0.7561]
[1746748419954,4.55337612,2196.2,2196.1,6.359]
[1746748420154,4.55322636,2196.3,2196.1,6.359]
[1746748420354,4.55331936,2196.2,2196.1,6.359]
[1746748423382,3.0,2196.7,2196.2,0.8238]
[1746748423583,4.55290011,2196.5,2196.2,0.8238]
[1746748424094,0.10190521,2196.5,2196.2,0.8238]
[1746748424607,0.08553064,2196.4,2196.2,0.8238]
[1746748426625,4.55236228,2196.7,2196.2,3.8238]
[1746748426774,4.55236228,2196.7,2196.3,0.04552498]
[1746748426974,4.55250749,2196.6,2196.2,3.8238]
[1746748427275,4.55311205,2196.3,2196.2,0.8238]
[1746748427594,4.5535267,2196.1,2196.0,6.357]
[1746748427797,4.55435624,2195.7,2195.6,3.178]
[1746748428007,4.55456367,2195.6,2195.5,0.7699]
[1746748428207,4.55373406,2196.0,2195.5,1.78250638]
[1746748428374,4.55406161,2195.9,2195.5,0.7699]
[1746748428577,4.55433027,2195.8,2195.5,0.7699]
[1746748428773,4.55373406,2196.0,2195.5,0.81544275]
[1746748429011,4.55410397,2195.9,2195.5,0.81544275]
[1746748429322,4.55415678,2195.8,2195.5,0.7699]
[1746748429882,4.55341633,2196.2,2195.7,4.55420143]
[1746748430103,4.55352925,2196.1,2195.5,6.33716385]
[1746748430311,4.55340087,2196.2,2195.6,4.55454998]
[1746748430622,4.55383813,2196.0,2195.6,4.55456338]
[1746748430820,4.5536463,2196.1,2195.6,6.941354]
[1746748431023,4.55429612,2195.8,2195.5,0.7699]
[1746748431327,4.55429612,2195.8,2195.7,6.356]
[1746748431507,4.55405288,2195.9,2195.7,6.356]
[1746748432022,4.55332356,2196.2,2195.7,6.356]
[1746748432324,4.5540464,2195.9,2195.7,6.356]
[1746748433825,4.55414882,2195.8,2195.7,6.356]
[1746748435330,4.55407064,2195.9,2195.7,6.356]
[1746748435621,4.55373406,2196.0,2195.7,6.356]
[1746748435823,4.55405292,2195.9,2195.7,6.356]
[1746748436022,4.55275204,2196.5,2195.7,7.06859]
[1746748436179,4.55338226,2196.2,2195.8,0.83613689]
[1746748436387,4.55352787,2196.1,2195.8,0.7906]
[1746748436801,4.55374947,2196.0,2195.8,0.7906]
[1746748438322,4.55394143,2195.9,2195.7,6.356]
[1746748438635,4.55435624,2195.7,2195.6,0.7611]
[1746748438786,4.55435624,2195.7,2195.6,7.1161]
[1746748439191,4.55422813,2195.8,2195.6,7.1161]
[1746748440007,4.55435624,2195.7,2195.6,7.1161]
[1746748440196,4.55435624,2195.7,2195.6,3.179]
[1746748440397,4.55435624,2195.7,2195.6,6.355]
[1746748443343,0.8227,2196.0,2195.2,0.8194]
[1746748443636,4.55560111,2195.1,2195.0,20.23586377]
[1746748443842,4.55560111,2195.1,2195.0,26.58986377]
[1746748444049,4.55560111,2195.1,2195.0,23.41486377]
[1746748444225,4.5562238,2194.8,2194.7,6.36717954]
[1746748444398,6.2620531,2194.8,2194.7,3.18817954]
[1746748444598,9.2620531,2194.8,2194.7,3.18817954]
[1746748444843,4.5561222,2194.9,2194.7,3.18817954]
[1746748445316,4.5562238,2194.8,2194.7,6.36717954]
[1746748445513,4.5562238,2194.8,2194.7,9.54217954]
[1746748445747,4.55610119,2194.9,2194.7,9.54217954]
[1746748446337,4.55610119,2194.9,2194.7,3.18817954]
[1746748446338,8.9167238,2194.8,2194.7,3.18817954]
[1746748446502,10.62600562,2194.8,2194.7,3.18817954]
[1746748446939,10.07600562,2194.8,2194.7,3.18817954]
[1746748447102,5.3667238,2194.8,2194.7,3.18817954]
[1746748447302,4.5562238,2194.8,2194.7,3.18817954]
[1746748448055,4.55613308,2194.9,2194.7,3.18817954]
[1746748448208,4.5562238,2194.8,2194.7,3.18817954]
[1746748448751,4.5562238,2194.8,2194.6,6.35]
[1746748449245,4.55590037,2195.0,2194.6,6.35]
[1746748449741,4.55574571,2195.1,2194.7,0.04556299]
[1746748450048,4.55574571,2195.1,2194.6,12.35920882]
[1746748450541,15.38454769,2195.4,2194.6,7.80267348]
[1746748450728,4.55590506,2195.0,2194.6,6.35]
[1746748451235,4.55571271,2195.1,2194.6,10.90659827]
[1746748451851,0.8178,2195.9,2195.0,3.61999321]
[1746748452013,1.08678,2195.8,2195.1,7.22764826]
[1746748452346,4.55435624,2195.7,2195.2,4.55528476]
[1746748452524,4.55459975,2195.6,2195.1,11.73759024]
[1746748452848,4.55381582,2196.0,2195.1,7.1821]
[1746748453011,4.55417328,2195.8,2195.4,0.8311]
[1746748453212,4.55417328,2195.8,2195.4,0.87664325]
[1746748454351,4.55417328,2195.8,2195.4,0.8311]
[1746748454847,0.56712122,2196.1,2195.4,0.8311]
[1746748454848,4.55373406,2196.0,2195.4,0.8311]
[1746748455047,4.55477112,2195.5,2195.4,0.8311]
[1746748455254,4.55466981,2195.6,2195.4,4.0051]
[1746748455428,4.55446141,2195.7,2195.4,4.0051]
[1746748455953,4.55435624,2195.7,2195.4,4.0051]
[1746748456151,5.120772,2196.1,2195.4,4.0051]
[1746748456356,4.55394143,2195.9,2195.2,0.8296]
[1746748456519,4.55468947,2195.6,2195.3,6.35]
[1746748457720,4.55466791,2195.6,2195.3,6.35]
[1746748458018,4.55466791,2195.6,2195.2,0.87514924]
[1746748458019,4.55397049,2195.9,2195.2,0.8296]
[1746748458215,4.55474471,2195.6,2195.3,6.35]
[1746748458467,4.55441156,2195.7,2195.3,12.08325604]
[1746748458760,4.55441156,2195.7,2195.3,7.52807226]
[1746748458936,4.55443923,2195.7,2195.3,7.52807226]
[1746748459259,4.55458033,2195.6,2195.3,7.52807226]
[1746748459433,4.55465262,2195.6,2195.3,7.52807226]
[1746748459758,4.5547345,2195.6,2195.3,7.52807226]
[1746748460125,4.55373406,2196.0,2195.3,7.52807226]
[1746748460126,4.55489668,2195.5,2195.3,7.52807226]
[1746748460526,4.55467734,2195.6,2195.3,7.52807226]
[1746748461372,4.55477687,2195.5,2195.3,7.52807226]
[1746748461666,4.55464823,2195.6,2195.3,7.52807226]
[1746748461867,4.55443113,2195.7,2195.3,7.52807226]
[1746748462028,4.55465008,2195.6,2195.3,7.52807226]
[1746748462228,4.55487594,2195.5,2195.3,7.52807226]
[1746748462463,4.5546862,2195.6,2195.3,7.52807226]
[1746748464377,4.55480059,2195.5,2195.3,7.52807226]
[1746748464678,4.55373406,2196.0,2195.3,7.52807226]
[1746748464977,4.55473555,2195.6,2195.3,7.52807226]
[1746748465171,4.55485309,2195.5,2195.3,7.52807226]
[1746748465679,4.55521973,2195.3,2195.0,4.16849932]
[1746748465840,4.55521973,2195.3,2195.1,6.348]
[1746748467206,4.5551019,2195.4,2195.1,6.348]
[1746748467481,4.55515183,2195.4,2195.1,6.348]
[1746748467678,0.7894,2195.8,2195.1,6.348]
[1746748467836,4.55430509,2195.8,2195.3,4.55509972]